fUST/lending_fUST_20240118
["ID","MTS","AMOUNT","RATE_DAILY","PERIOD"]
[311946645,1705512645481,-697.56,0.00021917,2]
[311946648,1705512645510,-500.0,0.00021917,2]
[311946650,1705512645534,-500.0,0.00021917,2]
[311946653,1705512645562,-500.0,0.00021917,2]
[311946654,1705512645578,-500.0,0.00021917,2]
[311946656,1705512645595,-500.0,0.00021917,2]
[311946663,1705512645705,-500.0,0.00021917,2]
[311946664,1705512645723,-500.0,0.00021917,2]
[311946666,1705512645738,-500.0,0.00021917,2]
[311946669,1705512645768,-500.0,0.00021917,2]
[311946670,1705512645795,-500.0,0.00021917,2]
[311946672,1705512645811,-1000.0,0.00021917,2]
[311946674,1705512645830,-500.0,0.00021917,2]
[311946676,1705512645851,-500.0,0.00021917,2]
[311946678,1705512645881,-500.0,0.00021917,2]
[311946680,1705512645900,-500.0,0.00021917,2]
[311946683,1705512645923,-1020.42,0.00021917,2]
[311946684,1705512645943,-500.0,0.00021917,2]
[311946686,1705512645962,-349.51798272,0.00021917,2]
[311946689,1705512645986,-500.0,0.00021917,2]
[311946691,1705512646006,-500.0,0.00021917,2]
[311946692,1705512646026,-166.666666,0.00021918,2]
[311946694,1705512646045,-591.44,0.00021953,2]
[311946696,1705512646074,-500.0,0.00021999,2]
[311946698,1705512646099,-293.1976279,0.00022,4]
[311946700,1705512646119,-425.53656097,0.00022,2]
[311946701,1705512646140,-3955.54830897,0.00022,2]
[311946703,1705512646156,-153.0,0.00022,2]
[311946705,1705512646172,-306.0,0.00022,2]
[311946707,1705512646207,-153.0,0.00022,2]
[311946710,1705512646235,-198.957615,0.00022,2]
[311946712,1705512646255,-153.0,0.00022,2]
[311946716,1705512646273,-198.957615,0.00022,2]
[311946718,1705512646288,-154.93802479,0.00022,2]
[311946721,1705512646312,-153.0,0.00022,2]
[311946724,1705512646340,-198.957615,0.00022,2]
[311946727,1705512646362,-591.44,0.00022053,2]
[311946729,1705512646386,-591.44,0.00022053,2]
[311946732,1705512646399,-591.44,0.00022053,2]
[311946734,1705512646427,-591.44,0.00022053,2]
[311946736,1705512646445,-591.44,0.00022053,2]
[311946738,1705512646471,-500.0,0.00022053,2]
[311946741,1705512646506,-500.0,0.00022054,2]
[311946743,1705512646529,-500.0,0.00022054,2]
[311946744,1705512646565,-500.0,0.00022054,2]
[311946746,1705512646584,-500.0,0.00022054,2]
[311946748,1705512646603,-500.0,0.00022054,2]
[311946750,1705512646647,-500.0,0.00022054,2]
[311946753,1705512646659,-500.0,0.00022054,2]
[311946755,1705512646698,-500.0,0.00022054,2]
[311946757,1705512646737,-500.0,0.00022054,2]
[311946759,1705512646762,-500.0,0.00022054,2]
[311946761,1705512646776,-500.0,0.00022054,2]
[311946763,1705512646804,-500.0,0.00022054,2]
[311946765,1705512646832,-508.81274928,0.00022054,2]
[311946768,1705512646858,-500.0,0.00022054,2]
[311946770,1705512646872,-500.0,0.00022054,2]
[311946771,1705512646891,-509.68802512,0.00022054,2]
[311946773,1705512646902,-500.0,0.00022054,2]
[311946775,1705512646932,-488.04280479,0.00022054,2]
[311946777,1705512646953,-500.0,0.00022054,2]
[311946779,1705512646975,-500.0,0.00022054,2]
[311946781,1705512647013,-500.0,0.00022054,2]
[311946782,1705512647034,-500.0,0.00022054,2]
[311946784,1705512647064,-500.0,0.00022054,2]
[311946786,1705512647098,-500.0,0.00022054,2]
[311946788,1705512647119,-500.0,0.00022054,2]
[311946790,1705512647141,-500.0,0.00022054,2]
[311946792,1705512647156,-500.0,0.00022054,2]
[311946794,1705512647185,-490.57231035,0.00022054,2]
[311946796,1705512647203,-500.0,0.00022054,2]
[311946798,1705512647227,-500.0,0.00022054,2]
[311946800,1705512647245,-500.0,0.00022054,2]
[311946802,1705512647283,-500.0,0.00022054,2]
[311946804,1705512647310,-500.0,0.00022054,2]
[311946806,1705512647328,-500.0,0.00022054,2]
[311946808,1705512647348,-500.0,0.00022054,2]
[311946809,1705512647366,-500.0,0.00022054,2]
[311946810,1705512647391,-501.32377553,0.00022054,2]
[311946811,1705512647420,-500.0,0.00022054,2]
[311946812,1705512647442,-500.0,0.00022054,2]
[311946813,1705512647465,-500.0,0.00022054,2]
[311946814,1705512647491,-593.26,0.00022054,2]
[311946815,1705512647516,-500.0,0.00022054,2]
[311946816,1705512647531,-500.0,0.00022054,2]
[311946817,1705512647551,-500.0,0.00022054,2]
[311946818,1705512647573,-500.0,0.00022054,2]
[311946820,1705512647595,-500.0,0.00022054,2]
[311946822,1705512647618,-624.38263946,0.00022054,2]
[311946824,1705512647649,-1270.32,0.00022054,2]
[311946827,1705512647671,-500.0,0.00022054,2]
[311946828,1705512647697,-500.0,0.00022054,2]
[311946830,1705512647720,-1755.97,0.00022054,2]
[311946832,1705512647745,-500.0,0.00022054,2]
[311946834,1705512647759,-500.0,0.00022054,2]
[311946837,1705512647790,-500.0,0.00022054,2]
[311946839,1705512647830,-500.0,0.00022054,2]
[311946841,1705512647850,-500.0,0.00022054,2]
[311946843,1705512647865,-500.0,0.00022054,2]
[311946844,1705512647881,-500.0,0.00022054,2]
[311946846,1705512647905,-515.2302821,0.00022054,2]
[311946848,1705512647927,-500.0,0.00022054,2]
[311946850,1705512647962,-500.0,0.00022054,2]
[311946853,1705512647984,-500.0,0.00022054,2]
[311946855,1705512647996,-500.0,0.00022054,2]
[311946857,1705512648012,-500.0,0.00022054,2]
[311946859,1705512648045,-500.0,0.00022054,2]
[311946860,1705512648064,-500.0,0.00022054,2]
[311946862,1705512648082,-500.0,0.00022054,2]
[311946864,1705512648100,-596.19,0.00022054,2]
[311946866,1705512648126,-500.0,0.00022054,2]
[311946867,1705512648142,-502.55761513,0.00022054,2]
[311946870,1705512648176,-500.0,0.00022054,2]
[311946872,1705512648212,-500.0,0.00022054,2]
[311946874,1705512648234,-500.0,0.00022054,2]
[311946877,1705512648257,-500.0,0.00022054,2]
[311946878,1705512648292,-500.0,0.00022054,2]
[311946880,1705512648308,-909.33,0.00022054,2]
[311946882,1705512648338,-500.0,0.00022054,2]
[311946884,1705512648353,-419.76471444,0.00022054,2]
[311946887,1705512648375,-500.0,0.00022054,2]
[311946888,1705512648393,-500.0,0.00022054,2]
[311946891,1705512648407,-5384.59,0.00022054,2]
[311946892,1705512648434,-702.23,0.00022054,2]
[311946894,1705512648462,-500.0,0.00022054,2]
[311946896,1705512648484,-502.5187616,0.00022054,2]
[311946898,1705512648505,-500.0,0.00022054,2]
[311946900,1705512648523,-500.0,0.00022054,2]
[311946902,1705512648558,-220.0,0.00022054,2]
[311946904,1705512648599,-2124.6,0.00022054,2]
[311946906,1705512648625,-500.0,0.00022054,2]
[311946908,1705512648648,-500.0,0.00022054,2]
[311946910,1705512648671,-500.0,0.00022054,2]
[311946912,1705512648691,-500.0,0.00022054,2]
[311946914,1705512648711,-502.26499882,0.00022054,2]
[311946916,1705512648724,-729.48,0.00022054,2]
[311946918,1705512648749,-500.0,0.00022054,2]
[311946920,1705512648770,-500.0,0.00022054,2]
[311946923,1705512648803,-500.0,0.00022054,2]
[311946925,1705512648820,-500.0,0.00022054,2]
[311946927,1705512648855,-500.0,0.00022054,2]
[311946928,1705512648873,-500.0,0.00022054,2]
[311946931,1705512648909,-13262.24,0.00022054,2]
[311946933,1705512648946,-500.0,0.00022054,2]
[311946935,1705512648982,-500.0,0.00022054,2]
[311946937,1705512649059,-500.0,0.00022054,2]
[311946940,1705512649109,-500.0,0.00022054,2]
[311946941,1705512649123,-3713.26,0.00022054,2]
[311946943,1705512649154,-199.08852864,0.00022054,2]
[311946945,1705512649177,-500.0,0.00022054,2]
[311946948,1705512649230,-478.85011104,0.00022054,2]
[311946950,1705512649246,-802.09,0.00022054,2]
[311946952,1705512649299,-226.60879206,0.00022054,2]
[311946954,1705512649356,-507.34473886,0.00022054,2]
[311946956,1705512649389,-500.0,0.00022054,2]
[311946958,1705512649414,-2868.28,0.00022054,2]
[311946960,1705512649429,-500.0,0.00022054,2]
[311946962,1705512649455,-500.0,0.00022054,2]
[311946968,1705512649473,-500.0,0.00022054,2]
[311946971,1705512649577,-500.0,0.00022054,2]
[311946973,1705512649594,-500.0,0.00022054,2]
[311946976,1705512649613,-500.0,0.00022054,2]
[311946978,1705512649626,-293.86444485,0.00022054,2]
[311946980,1705512649647,-1114.41,0.00022054,2]
[311946981,1705512649688,-500.0,0.00022054,2]
[311946984,1705512649714,-500.0,0.00022054,2]
[311946985,1705512649739,-500.0,0.00022054,2]
[311946987,1705512649764,-500.0,0.00022054,2]
[311946989,1705512649798,-4076.23,0.00022054,2]
[311946991,1705512649810,-6857.76,0.00022054,2]
[311946993,1705512649836,-500.0,0.00022054,2]
[311946995,1705512649853,-500.85728757,0.00022054,2]
[311946997,1705512649887,-500.0,0.00022054,2]
[311947000,1705512649907,-500.0,0.00022054,2]
[311947001,1705512649947,-500.0,0.00022054,2]
[311947003,1705512649962,-751.69,0.00022054,2]
[311947006,1705512649997,-500.0,0.00022054,2]
[311947007,1705512650019,-500.0,0.00022054,2]
[311947009,1705512650040,-539.80634343,0.00022054,2]
[311947011,1705512650058,-675.9,0.00022054,2]
[311947013,1705512650101,-500.0,0.00022054,2]
[311947015,1705512650123,-1500.71,0.00022054,2]
[311947017,1705512650142,-500.0,0.00022054,2]
[311947019,1705512650155,-500.0,0.00022054,2]
[311947021,1705512650186,-931.99,0.00022054,2]
[311947023,1705512650207,-500.0,0.00022054,2]
[311947025,1705512650239,-500.0,0.00022054,2]
[311947027,1705512650262,-500.0,0.00022054,2]
[311947029,1705512650289,-252.51760587,0.00022054,2]
[311947031,1705512650315,-500.0,0.00022054,2]
[311947032,1705512650336,-500.0,0.00022054,2]
[311947034,1705512650350,-500.0,0.00022054,2]
[311947037,1705512650377,-500.0,0.00022054,2]
[311947039,1705512650401,-500.0,0.00022054,2]
[311947041,1705512650428,-500.0,0.00022054,2]
[311947043,1705512650449,-500.0,0.00022054,2]
[311947045,1705512650477,-808.21,0.00022054,2]
[311947048,1705512650528,-500.0,0.00022054,2]
[311947050,1705512650555,-550.0,0.00022054,2]
[311947052,1705512650578,-420.10258733,0.00022054,2]
[311947053,1705512650601,-500.0,0.00022054,2]
[311947055,1705512650641,-500.0,0.00022054,2]
[311947057,1705512650672,-526.91670753,0.00022054,2]
[311947059,1705512650698,-500.0,0.00022054,2]
[311947062,1705512650737,-500.0,0.00022054,2]
[311947064,1705512650768,-1242.35,0.00022054,2]
[311947066,1705512650802,-500.0,0.00022054,2]
[311947068,1705512650850,-1372.82,0.00022054,2]
[311947069,1705512650880,-500.0,0.00022054,2]
[311947071,1705512650906,-500.0,0.00022054,2]
[311947074,1705512650934,-500.0,0.00022054,2]
[311947076,1705512650958,-500.0,0.00022054,2]
[311947077,1705512650974,-502.16920952,0.00022054,2]
[311947079,1705512650989,-500.0,0.00022054,2]
[311947081,1705512651018,-500.0,0.00022054,2]
[311947083,1705512651053,-500.0,0.00022054,2]
[311947085,1705512651076,-500.0,0.00022054,2]
[311947086,1705512651096,-697.56,0.00022054,2]
[311947088,1705512651114,-226.6921614,0.00022054,2]
[311947090,1705512651146,-500.0,0.00022054,2]
[311947091,1705512651166,-500.0,0.00022054,2]
[311947094,1705512651182,-500.0,0.00022054,2]
[311947096,1705512651207,-500.0,0.00022054,2]
[311947097,1705512651232,-500.0,0.00022054,2]
[311947099,1705512651257,-500.0,0.00022054,2]
[311947101,1705512651271,-500.91038738,0.00022054,2]
[311947103,1705512651306,-502.93276528,0.00022054,2]
[311947105,1705512651533,-1000.0,0.00022054,2]
[311947107,1705512651570,-500.0,0.00022054,2]
[311947109,1705512651593,-500.0,0.00022054,2]
[311947111,1705512651643,-500.0,0.00022054,2]
[311947113,1705512651675,-1020.42,0.00022054,2]
[311947116,1705512651708,-500.0,0.00022054,2]
[311947118,1705512651730,-500.0,0.00022054,2]
[311947119,1705512651757,-154.1994419,0.000221,2]
[311947121,1705512651802,-153.0,0.000221,2]
[311947123,1705512651828,-9111.67082876,0.00022124,2]
[311947126,1705512651846,-500.0,0.00022189,2]
[311947127,1705512651884,-591.44,0.0002219,2]
[311947129,1705512651900,-591.44,0.0002219,2]
[311947131,1705512651926,-591.44,0.0002219,2]
[311947133,1705512651942,-591.44,0.0002219,2]
[311947136,1705512651966,-500.0,0.0002219,2]
[311947137,1705512651991,-500.0,0.00022191,2]
[311947139,1705512652007,-500.0,0.00022191,2]
[311947141,1705512652023,-500.0,0.00022191,2]
[311947144,1705512652043,-500.0,0.00022191,2]
[311947145,1705512652062,-500.0,0.00022191,2]
[311947147,1705512652104,-500.0,0.00022191,2]
[311947149,1705512652125,-500.0,0.00022191,2]
[311947151,1705512652144,-500.0,0.00022191,2]
[311947153,1705512652159,-500.0,0.00022191,2]
[311947164,1705512652388,-500.0,0.00022191,2]
[311947166,1705512652400,-500.0,0.00022191,2]
[311947167,1705512652424,-224.20797195,0.00022191,2]
[311947169,1705512652440,-500.0,0.00022191,2]
[311947172,1705512652458,-500.0,0.00022191,2]
[311947174,1705512652489,-500.0,0.00022191,2]
[311947175,1705512652503,-500.0,0.00022191,2]
[311947177,1705512652523,-500.0,0.00022191,2]
[311947179,1705512652542,-500.0,0.00022191,2]
[311947182,1705512652556,-500.0,0.00022191,2]
[311947183,1705512652569,-500.0,0.00022191,2]
[311947185,1705512652587,-313.08602602,0.00022191,2]
[311947187,1705512652600,-500.0,0.00022191,2]
[311947189,1705512652612,-500.0,0.00022191,2]
[311947191,1705512652625,-593.26,0.00022191,2]
[311947193,1705512652646,-564.50422417,0.00022191,2]
[311947195,1705512652662,-500.0,0.00022191,2]
[311947197,1705512652685,-500.0,0.00022191,2]
[311947199,1705512652710,-500.0,0.00022191,2]
[311947201,1705512652725,-500.0,0.00022191,2]
[311947203,1705512652738,-1270.32,0.00022191,2]
[311947205,1705512652748,-500.83532328,0.00022191,2]
[311947207,1705512652764,-1755.97,0.00022191,2]
[311947209,1705512652777,-500.0,0.00022191,2]
[311947211,1705512652796,-500.0,0.00022191,2]
[311947213,1705512652810,-395.89549653,0.00022191,2]
[311947215,1705512652822,-500.0,0.00022191,2]
[311947217,1705512652834,-500.0,0.00022191,2]
[311947219,1705512652846,-500.0,0.00022191,2]
[311947221,1705512652858,-500.0,0.00022191,2]
[311947223,1705512652873,-500.0,0.00022191,2]
[311947224,1705512652887,-500.0,0.00022191,2]
[311947226,1705512652926,-239.57751721,0.00022191,2]
[311947227,1705512652953,-500.0,0.00022191,2]
[311947228,1705512652972,-500.0,0.00022191,2]
[311947229,1705512652984,-596.19,0.00022191,2]
[311947230,1705512652995,-500.0,0.00022191,2]
[311947231,1705512653028,-500.0,0.00022191,2]
[311947232,1705512653044,-500.0,0.00022191,2]
[311947233,1705512653062,-500.0,0.00022191,2]
[311947234,1705512653080,-909.33,0.00022191,2]
[311947235,1705512653102,-540.7180897,0.00022191,2]
[311947237,1705512653128,-398.41303084,0.00022191,2]
[311947239,1705512653162,-5384.59,0.00022191,2]
[311947240,1705512653181,-702.23,0.00022191,2]
[311947242,1705512653203,-500.0,0.00022191,2]
[311947244,1705512653232,-500.0,0.00022191,2]
[311947250,1705512653317,-373.15444107,0.00022191,2]
[311947251,1705512653343,-178.3044572,0.00022191,2]
[311947254,1705512653364,-2124.6,0.00022191,2]
[311947256,1705512653404,-500.0,0.00022191,2]
[311947258,1705512653426,-500.0,0.00022191,2]
[311947259,1705512653451,-500.0,0.00022191,2]
[311947261,1705512653478,-729.48,0.00022191,2]
[311947263,1705512653497,-332.96932048,0.00022191,2]
[311947266,1705512653534,-500.0,0.00022191,2]
[311947268,1705512653561,-500.0,0.00022191,2]
[311947270,1705512653589,-541.59308008,0.00022191,2]
[311947272,1705512653615,-261.51843576,0.00022191,2]
[311947273,1705512653633,-13262.24,0.00022191,2]
[311947275,1705512653646,-500.0,0.00022191,2]
[311947277,1705512653675,-500.0,0.00022191,2]
[311947279,1705512653704,-500.0,0.00022191,2]
[311947281,1705512653725,-500.0,0.00022191,2]
[311947283,1705512653740,-3713.26,0.00022191,2]
[311947285,1705512653767,-500.0,0.00022191,2]
[311947287,1705512653784,-802.09,0.00022191,2]
[311947288,1705512653801,-500.0,0.00022191,2]
[311947290,1705512653822,-2868.28,0.00022191,2]
[311947292,1705512653837,-500.0,0.00022191,2]
[311947294,1705512653854,-500.0,0.00022191,2]
[311947296,1705512653880,-500.0,0.00022191,2]
[311947298,1705512653911,-500.0,0.00022191,2]
[311947300,1705512653939,-1114.41,0.00022191,2]
[311947303,1705512653957,-500.0,0.00022191,2]
[311947304,1705512653989,-439.13477728,0.00022191,2]
[311947306,1705512654009,-500.0,0.00022191,2]
[311947308,1705512654025,-4076.23,0.00022191,2]
[311947309,1705512654053,-6857.76,0.00022191,2]
[311947310,1705512654088,-500.0,0.00022191,2]
[311947312,1705512654109,-421.22353423,0.00022191,2]
[311947314,1705512654135,-500.0,0.00022191,2]
[311947316,1705512654157,-500.0,0.00022191,2]
[311947318,1705512654183,-751.69,0.00022191,2]
[311947320,1705512654207,-500.0,0.00022191,2]
[311947322,1705512654224,-155.65120151,0.00022191,2]
[311947324,1705512654243,-675.9,0.00022191,2]
[311947326,1705512654267,-500.0,0.00022191,2]
[311947327,1705512654288,-1500.71,0.00022191,2]
[311947328,1705512654305,-500.0,0.00022191,2]
[311947329,1705512654339,-500.0,0.00022191,2]
[311947330,1705512654351,-931.99,0.00022191,2]
[311947331,1705512654373,-500.0,0.00022191,2]
[311947332,1705512654399,-500.0,0.00022191,2]
[311947333,1705512654421,-500.0,0.00022191,2]
[311947334,1705512654448,-500.0,0.00022191,2]
[311947335,1705512654471,-500.0,0.00022191,2]
[311947337,1705512654492,-500.0,0.00022191,2]
[311947339,1705512654531,-500.0,0.00022191,2]
[311947342,1705512654562,-500.0,0.00022191,2]
[311947343,1705512654578,-535.93108189,0.00022191,2]
[311947345,1705512654600,-500.0,0.00022191,2]
[311947347,1705512654620,-808.21,0.00022191,2]
[311947350,1705512654654,-500.0,0.00022191,2]
[311947352,1705512654677,-500.0,0.00022191,2]
[311947355,1705512654728,-500.0,0.00022191,2]
[311947356,1705512654750,-500.0,0.00022191,2]
[311947358,1705512654765,-500.0,0.00022191,2]
[311947360,1705512654787,-1242.35,0.00022191,2]
[311947362,1705512654807,-500.0,0.00022191,2]
[311947363,1705512654829,-1372.82,0.00022191,2]
[311947366,1705512654863,-501.06750293,0.00022191,2]
[311947368,1705512654887,-500.0,0.00022191,2]
[311947369,1705512654902,-500.0,0.00022191,2]
[311947371,1705512654917,-500.0,0.00022191,2]
[311947373,1705512654934,-500.0,0.00022191,2]
[311947375,1705512654947,-500.0,0.00022191,2]
[311947378,1705512654976,-508.60469395,0.00022191,2]
[311947380,1705512654992,-500.0,0.00022191,2]
[311947382,1705512655015,-697.56,0.00022191,2]
[311947385,1705512655043,-500.0,0.00022191,2]
[311947387,1705512655065,-500.0,0.00022191,2]
[311947389,1705512655085,-500.0,0.00022191,2]
[311947391,1705512655113,-600.88725899,0.00022191,2]
[311947394,1705512655146,-500.0,0.00022191,2]
[311947396,1705512655171,-1000.0,0.00022191,2]
[311947398,1705512655193,-500.0,0.00022191,2]
[311947400,1705512655215,-500.0,0.00022191,2]
[311947401,1705512655253,-500.0,0.00022191,2]
[311947403,1705512655273,-1020.42,0.00022191,2]
[311947405,1705512655302,-500.0,0.00022191,2]
[311947408,1705512655324,-591.44,0.00022327,2]
[311947410,1705512655349,-591.44,0.00022327,2]
[311947412,1705512655361,-591.44,0.00022327,2]
[311947413,1705512655378,-591.44,0.00022327,2]
[311947415,1705512655398,-591.44,0.00022327,2]
[311947417,1705512655413,-591.44,0.00022327,2]
[311947419,1705512655427,-591.50659805,0.00022327,2]
[311947421,1705512655449,-500.0,0.00022327,2]
[311947423,1705512655471,-500.0,0.00022328,2]
[311947425,1705512655493,-500.0,0.00022328,2]
[311947427,1705512655515,-500.0,0.00022328,2]
[311947429,1705512655542,-500.0,0.00022328,2]
[311947431,1705512655566,-500.0,0.00022328,2]
[311947432,1705512655580,-500.0,0.00022328,2]
[311947434,1705512655596,-500.0,0.00022328,2]
[311947437,1705512655620,-500.0,0.00022328,2]
[311947439,1705512655639,-500.0,0.00022328,2]
[311947441,1705512655660,-500.0,0.00022328,2]
[311947443,1705512655681,-500.0,0.00022328,2]
[311947445,1705512655705,-500.0,0.00022328,2]
[311947446,1705512655722,-500.0,0.00022328,2]
[311947448,1705512655746,-500.0,0.00022328,2]
[311947450,1705512655772,-500.0,0.00022328,2]
[311947452,1705512655802,-500.0,0.00022328,2]
[311947454,1705512655823,-593.26,0.00022328,2]
[311947456,1705512655839,-500.0,0.00022328,2]
[311947459,1705512655883,-1270.32,0.00022328,2]
[311947461,1705512655898,-1755.97,0.00022328,2]
[311947463,1705512655923,-500.0,0.00022328,2]
[311947465,1705512655943,-615.40440601,0.00022328,2]
[311947467,1705512655967,-494.09487652,0.00022328,2]
[311947468,1705512655986,-500.0,0.00022328,2]
[311947470,1705512656006,-500.0,0.00022328,2]
[311947472,1705512656018,-500.0,0.00022328,2]
[311947475,1705512656052,-500.0,0.00022328,2]
[311947477,1705512656086,-630.78330674,0.00022328,2]
[311947478,1705512656100,-596.19,0.00022328,2]
[311947481,1705512656123,-500.0,0.00022328,2]
[311947483,1705512656142,-909.33,0.00022328,2]
[311947485,1705512656157,-5384.59,0.00022328,2]
[311947487,1705512656174,-702.23,0.00022328,2]
[311947490,1705512656204,-500.0,0.00022328,2]
[311947492,1705512656222,-491.09870363,0.00022328,2]
[311947496,1705512656311,-2124.6,0.00022328,2]
[311947498,1705512656332,-500.0,0.00022328,2]
[311947501,1705512656362,-729.48,0.00022328,2]
[311947503,1705512656379,-500.0,0.00022328,2]
[311947504,1705512656391,-13262.24,0.00022328,2]
[311947506,1705512656413,-500.0,0.00022328,2]
[311947508,1705512656440,-3713.26,0.00022328,2]
[311947510,1705512656467,-500.0,0.00022328,2]
[311947512,1705512656485,-802.09,0.00022328,2]
[311947514,1705512656513,-500.0,0.00022328,2]
[311947516,1705512656536,-2868.28,0.00022328,2]
[311947518,1705512656561,-503.98676531,0.00022328,2]
[311947520,1705512656581,-500.0,0.00022328,2]
[311947522,1705512656603,-500.0,0.00022328,2]
[311947524,1705512656634,-1114.41,0.00022328,2]
[311947527,1705512656667,-618.17282795,0.00022328,2]
[311947529,1705512656685,-504.49598516,0.00022328,2]
[311947530,1705512656702,-4076.23,0.00022328,2]
[311947533,1705512656727,-6857.76,0.00022328,2]
[311947534,1705512656746,-500.0,0.00022328,2]
[311947537,1705512656762,-500.0,0.00022328,2]
[311947539,1705512656787,-500.0,0.00022328,2]
[311947541,1705512656817,-751.69,0.00022328,2]
[311947543,1705512656834,-500.0,0.00022328,2]
[311947546,1705512656862,-675.9,0.00022328,2]
[311947547,1705512656888,-500.0,0.00022328,2]
[311947549,1705512656915,-1500.71,0.00022328,2]
[311947551,1705512656941,-500.0,0.00022328,2]
[311947554,1705512656965,-500.0,0.00022328,2]
[311947555,1705512656990,-931.99,0.00022328,2]
[311947558,1705512657009,-236.06186457,0.00022328,2]
[311947560,1705512657041,-500.0,0.00022328,2]
[311947562,1705512657059,-500.0,0.00022328,2]
[311947564,1705512657081,-500.0,0.00022328,2]
[311947567,1705512657107,-500.0,0.00022328,2]
[311947569,1705512657146,-282.50659396,0.00022328,2]
[311947571,1705512657162,-500.0,0.00022328,2]
[311947573,1705512657173,-500.0,0.00022328,2]
[311947575,1705512657196,-500.0,0.00022328,2]
[311947577,1705512657209,-808.21,0.00022328,2]
[311947578,1705512657222,-500.0,0.00022328,2]
[311947581,1705512657246,-500.0,0.00022328,2]
[311947582,1705512657276,-500.0,0.00022328,2]
[311947584,1705512657303,-500.0,0.00022328,2]
[311947586,1705512657318,-500.0,0.00022328,2]
[311947588,1705512657337,-1242.35,0.00022328,2]
[311947590,1705512657355,-201.66657356,0.00022328,2]
[311947592,1705512657377,-1372.82,0.00022328,2]
[311947594,1705512657392,-500.0,0.00022328,2]
[311947595,1705512657404,-258.19461194,0.00022328,2]
[311947597,1705512657426,-500.0,0.00022328,2]
[311947600,1705512657441,-500.0,0.00022328,2]
[311947602,1705512657460,-500.0,0.00022328,2]
[311947604,1705512657488,-500.0,0.00022328,2]
[311947606,1705512657517,-697.56,0.00022328,2]
[311947607,1705512657534,-500.0,0.00022328,2]
[311947610,1705512657567,-500.0,0.00022328,2]
[311947612,1705512657594,-357.88867272,0.00022328,2]
[311947614,1705512657614,-500.0,0.00022328,2]
[311947615,1705512657650,-1000.0,0.00022328,2]
[311947617,1705512657673,-500.0,0.00022328,2]
[311947619,1705512657692,-500.0,0.00022328,2]
[311947621,1705512657714,-500.0,0.00022328,2]
[311947623,1705512657749,-1020.42,0.00022328,2]
[311947625,1705512657766,-500.0,0.00022328,2]
[311947627,1705512657795,-166.666666,0.00022431,2]
[311947629,1705512657825,-407.40474853,0.00022464,2]
[311947631,1705512657837,-500.0,0.00022465,2]
[311947633,1705512657871,-500.0,0.00022465,2]
[311947636,1705512657894,-500.0,0.00022465,2]
[311947638,1705512657908,-500.0,0.00022465,2]
[311947640,1705512657930,-500.0,0.00022465,2]
[311947641,1705512657949,-600.04,0.00022465,2]
[311947643,1705512657967,-500.0,0.00022465,2]